fUST/lending_fUST_20250626
["ID","MTS","AMOUNT","RATE_DAILY","PERIOD"]
[367660372,1750890642443,-160.0,0.00017978,2]
[367660375,1750890642452,-213.69531788,0.00017978,2]
[367660376,1750890642461,-846.80634355,0.00017978,2]
[367660378,1750890642471,-425.18553072,0.00017978,2]
[367660380,1750890642480,-160.0,0.00017978,2]
[367660383,1750890642489,-16511.45081284,0.00018,2]
[367660385,1750890642498,-4623.17132964,0.00018,2]
[367660387,1750890642508,-1008.41610922,0.00018003,2]
[367660389,1750890642517,-460.0,0.00018082,2]
[367660391,1750890642526,-478.62,0.00018082,2]
[367660392,1750890642536,-460.0,0.00018082,2]
[367660393,1750890642545,-544.65,0.00018082,2]
[367660394,1750890642554,-591.8,0.00018082,2]
[367660395,1750890642563,-460.0,0.00018082,2]
[367660396,1750890642573,-1386.63,0.00018082,2]
[367660397,1750890642582,-897.71,0.00018082,2]
[367660398,1750890642592,-686.18,0.00018082,2]
[367660399,1750890642601,-952.47,0.00018082,2]
[367660400,1750890642610,-460.0,0.00018082,2]
[367660401,1750890642619,-460.0,0.00018082,2]
[367660402,1750890642629,-460.0,0.00018082,2]
[367660403,1750890642639,-460.0,0.00018082,2]
[367660405,1750890642648,-695.34,0.00018082,2]
[367660407,1750890642658,-366.54346577,0.00018082,2]
[367660409,1750890642667,-677.71,0.00018082,2]
[367660411,1750890642676,-428.04454373,0.00018082,2]
[367660412,1750890642685,-460.0,0.00018082,2]
[367660414,1750890642695,-666.71,0.00018082,2]
[367660416,1750890642704,-460.0,0.00018082,2]
[367660418,1750890642713,-460.0,0.00018082,2]
[367660420,1750890642722,-497.59,0.00018082,2]
[367660422,1750890642731,-460.0,0.00018082,2]
[367660424,1750890642742,-165.9966585,0.00018082,2]
[367660426,1750890642751,-1000.0,0.00018236,2]
[367660428,1750890642760,-1002.40315064,0.00018236,2]
[367660430,1750890642770,-1000.0,0.00018237,2]
[367660432,1750890642779,-500.0,0.00018258,2]
[367660434,1750890642788,-1000.43898569,0.00018258,2]
[367660436,1750890642797,-500.0,0.00018258,2]
[367660438,1750890642807,-1000.0,0.00018258,2]
[367660440,1750890642816,-1000.0,0.00018258,2]
[367660442,1750890642825,-1000.0,0.00018258,2]
[367660444,1750890642833,-1000.0,0.00018258,2]
[367660446,1750890642843,-500.0,0.00018258,2]
[367660448,1750890642852,-1000.0,0.00018258,2]
[367660450,1750890642862,-1008.41610922,0.00018279,2]
[367660452,1750890642871,-1000.0,0.0001828,2]
[367660454,1750890642880,-626.38024141,0.00018301,2]
[367660456,1750890642889,-1000.0,0.00018308,2]
[367660458,1750890642899,-460.0,0.00018356,2]
[367660460,1750890642912,-478.62,0.00018356,2]
[367660462,1750890642921,-460.0,0.00018356,2]
[367660464,1750890642930,-544.65,0.00018356,2]
[367660466,1750890642940,-591.8,0.00018356,2]
[367660468,1750890642951,-460.0,0.00018356,2]
[367660470,1750890642960,-1386.63,0.00018356,2]
[367660472,1750890642969,-897.71,0.00018356,2]
[367660474,1750890642980,-686.18,0.00018356,2]
[367660476,1750890642991,-952.47,0.00018356,2]
[367660478,1750890643001,-460.0,0.00018356,2]
[367660480,1750890643010,-460.0,0.00018356,2]
[367660482,1750890643019,-460.0,0.00018356,2]
[367660484,1750890643028,-460.0,0.00018356,2]
[367660486,1750890643038,-695.34,0.00018356,2]
[367660488,1750890643047,-677.71,0.00018356,2]
[367660490,1750890643056,-460.0,0.00018356,2]
[367660492,1750890643066,-666.71,0.00018356,2]
[367660508,1750890643075,-460.0,0.00018356,2]
[367660510,1750890643210,-460.0,0.00018356,2]
[367660512,1750890643220,-497.59,0.00018356,2]
[367660514,1750890643229,-460.0,0.00018356,2]
[367660516,1750890643239,-1000.0,0.00018444,2]
[367660518,1750890643248,-1000.0,0.00018444,2]
[367660520,1750890643258,-881.28953766,0.00018444,2]
[367660522,1750890643267,-506.37154004,0.00018444,2]
[367660524,1750890643275,-500.0,0.00018444,2]
[367660526,1750890643285,-520.66461532,0.00018545,2]
[367660527,1750890643294,-1008.41610922,0.00018555,2]
[367660530,1750890643303,-460.0,0.0001863,2]
[367660531,1750890643312,-478.62,0.0001863,2]
[367660533,1750890643321,-460.0,0.0001863,2]
[367660535,1750890643331,-544.65,0.0001863,2]
[367660537,1750890643340,-591.8,0.0001863,2]
[367660539,1750890643349,-460.0,0.0001863,2]
[367660541,1750890643358,-1386.63,0.0001863,2]
[367660543,1750890643367,-897.71,0.0001863,2]
[367660545,1750890643376,-686.18,0.0001863,2]
[367660547,1750890643385,-952.47,0.0001863,2]
[367660549,1750890643395,-460.0,0.0001863,2]
[367660551,1750890643404,-150.44578975,0.0001863,2]
[367660553,1750890643413,-460.0,0.0001863,2]
[367660555,1750890643423,-460.0,0.0001863,2]
[367660557,1750890643432,-695.34,0.0001863,2]
[367660559,1750890643441,-677.71,0.0001863,2]
[367660561,1750890643451,-460.0,0.0001863,2]
[367660563,1750890643460,-666.71,0.0001863,2]
[367660565,1750890643469,-460.0,0.0001863,2]
[367660567,1750890643479,-366.19108148,0.0001863,2]
[367660569,1750890643488,-497.59,0.0001863,2]
[367660571,1750890643497,-1500.0,0.00018784,2]
[367660573,1750890643506,-500.0,0.00018806,2]
[367660575,1750890643516,-500.0,0.00018806,2]
[367660577,1750890643526,-500.0,0.00018806,2]
[367660579,1750890643536,-1070.76392144,0.00018806,2]
[367660581,1750890643546,-277.0,0.00018806,2]
[367660583,1750890643555,-1008.41610922,0.00018831,2]
[367660585,1750890643564,-4884.1741027,0.000189,2]
[367660587,1750890643574,-460.0,0.00018904,2]
[367660589,1750890643583,-478.62,0.00018904,2]
[367660591,1750890643593,-367.75942926,0.00018904,2]
[367660593,1750890643602,-544.65,0.00018904,2]
[367660595,1750890643611,-591.8,0.00018904,2]
[367660597,1750890643621,-460.0,0.00018904,2]
[367660599,1750890643631,-1386.63,0.00018904,2]
[367660601,1750890643641,-897.71,0.00018904,2]
[367660603,1750890643650,-686.18,0.00018904,2]
[367660605,1750890643660,-952.47,0.00018904,2]
[367660607,1750890643669,-460.0,0.00018904,2]
[367660609,1750890643679,-460.0,0.00018904,2]
[367660611,1750890643689,-460.0,0.00018904,2]
[367660613,1750890643699,-695.34,0.00018904,2]
[367660615,1750890643708,-677.71,0.00018904,2]
[367660617,1750890643717,-460.0,0.00018904,2]
[367660619,1750890643725,-666.71,0.00018904,2]
[367660621,1750890643734,-460.0,0.00018904,2]
[367660623,1750890643744,-497.59,0.00018904,2]
[367660625,1750890643755,-343.0,0.00018964,2]
[367660627,1750890643764,-500.0,0.00018992,2]
[367660629,1750890643774,-14303.21200395,0.00019,2]
[367660631,1750890643783,-207.4,0.00019065,2]
[367660633,1750890643793,-618.66015837,0.00019065,2]
[367660635,1750890643803,-5000.0,0.00019065,2]
[367660637,1750890643812,-5526.19087151,0.00019065,2]
[367660639,1750890643821,-1008.41610922,0.00019107,2]
[367660641,1750890643831,-626.38024141,0.00019167,2]
[367660643,1750890643840,-460.0,0.00019178,2]
[367660645,1750890643850,-478.62,0.00019178,2]
[367660647,1750890643859,-544.65,0.00019178,2]
[367660649,1750890643868,-591.8,0.00019178,2]
[367660651,1750890643877,-432.25444548,0.00019178,2]
[367660653,1750890643887,-1386.63,0.00019178,2]
[367660655,1750890643897,-897.71,0.00019178,2]
[367660657,1750890643908,-686.18,0.00019178,2]
[367660659,1750890643917,-952.47,0.00019178,2]
[367660660,1750890643927,-460.0,0.00019178,2]
[367660662,1750890643936,-460.0,0.00019178,2]
[367660664,1750890643946,-460.0,0.00019178,2]
[367660666,1750890643954,-695.34,0.00019178,2]
[367660668,1750890643963,-677.71,0.00019178,2]
[367660670,1750890643973,-460.0,0.00019178,2]
[367660672,1750890643983,-666.71,0.00019178,2]
[367660674,1750890643993,-460.0,0.00019178,2]
[367660676,1750890644002,-497.59,0.00019178,2]
[367660678,1750890644011,-315.927704,0.00019178,2]
[367660680,1750890644021,-215.0,0.00019178,3]
[367660682,1750890644030,-168.0,0.00019322,2]
[367660684,1750890644040,-500.0,0.00019369,2]
[367660686,1750890644049,-500.0,0.00019369,2]
[367660688,1750890644059,-500.0,0.00019369,2]
[367660690,1750890644068,-500.0,0.00019369,2]
[367660692,1750890644077,-500.0,0.00019369,2]
[367660694,1750890644086,-500.0,0.00019369,2]
[367660696,1750890644096,-500.0,0.00019369,2]
[367660698,1750890644106,-500.0,0.00019369,2]
[367660700,1750890644115,-151.0,0.00019369,2]
[367660701,1750890644124,-151.0,0.00019369,2]
[367660703,1750890644134,-151.0,0.00019369,2]
[367660705,1750890644143,-151.0,0.00019369,2]
[367660707,1750890644152,-151.0,0.00019369,2]
[367660709,1750890644162,-151.0,0.00019369,2]
[367660711,1750890644171,-500.0,0.00019369,2]
[367660713,1750890644180,-500.0,0.00019369,2]
[367660715,1750890644190,-151.0,0.00019369,2]
[367660717,1750890644200,-151.0,0.00019369,2]
[367660719,1750890644209,-500.0,0.00019369,2]
[367660721,1750890644219,-168.67966396,0.00019369,2]
[367660723,1750890644228,-500.0,0.00019369,2]
[367660725,1750890644237,-151.0,0.00019369,2]
[367660727,1750890644246,-151.0,0.00019369,2]
[367660729,1750890644256,-500.0,0.00019369,2]
[367660731,1750890644266,-151.0,0.00019369,2]
[367660733,1750890644275,-500.0,0.00019369,2]
[367660735,1750890644284,-151.0,0.00019369,2]
[367660737,1750890644294,-151.0,0.00019369,2]
[367660739,1750890644303,-151.0,0.00019369,2]
[367660741,1750890644312,-500.0,0.00019369,2]
[367660743,1750890644321,-500.0,0.00019369,2]
[367660745,1750890644330,-500.0,0.00019369,2]
[367660747,1750890644340,-151.0,0.00019369,2]
[367660749,1750890644349,-151.8409273,0.00019369,2]
[367660751,1750890644358,-151.0,0.00019369,2]
[367660753,1750890644368,-151.0,0.00019369,2]
[367660755,1750890644377,-152.14900843,0.00019369,2]
[367660757,1750890644386,-151.0,0.00019369,2]
[367660759,1750890644395,-1008.41610922,0.00019383,2]
[367660761,1750890644404,-500.0,0.00019396,2]
[367660763,1750890644414,-500.0,0.00019396,2]
[367660765,1750890644423,-500.0,0.00019396,2]
[367660767,1750890644431,-500.0,0.00019396,2]
[367660769,1750890644440,-500.0,0.00019396,2]
[367660771,1750890644449,-500.0,0.00019396,2]
[367660773,1750890644459,-500.0,0.00019396,2]
[367660775,1750890644468,-500.0,0.00019396,2]
[367660777,1750890644478,-151.0,0.00019396,2]
[367660779,1750890644487,-151.0,0.00019396,2]
[367660781,1750890644496,-151.0,0.00019396,2]
[367660783,1750890644505,-151.0,0.00019396,2]
[367660785,1750890644518,-151.0,0.00019396,2]
[367660787,1750890644527,-500.0,0.00019396,2]
[367660789,1750890644536,-500.0,0.00019396,2]
[367660791,1750890644546,-151.0,0.00019396,2]
[367660793,1750890644555,-151.0,0.00019396,2]
[367660795,1750890644565,-500.0,0.00019396,2]
[367660797,1750890644575,-500.0,0.00019396,2]
[367660799,1750890644585,-151.0,0.00019396,2]
[367660801,1750890644594,-254.80061498,0.00019396,2]
[367660803,1750890644604,-500.0,0.00019396,2]
[367660805,1750890644614,-500.0,0.00019396,2]
[367660807,1750890644623,-151.0,0.00019396,2]
[367660809,1750890644633,-151.0,0.00019396,2]
[367660811,1750890644642,-151.0,0.00019396,2]
[367660813,1750890644651,-500.0,0.00019396,2]
[367660815,1750890644660,-500.0,0.00019396,2]
[367660817,1750890644669,-500.0,0.00019396,2]
[367660819,1750890644678,-151.0,0.00019396,2]
[367660821,1750890644688,-151.0,0.00019396,2]
[367660823,1750890644697,-151.0,0.00019396,2]
[367660825,1750890644706,-654.0,0.00019414,2]
[367660827,1750890644715,-2161.0,0.00019414,2]
[367660829,1750890644726,-406.0,0.00019414,2]
[367660831,1750890644739,-406.0,0.00019414,2]
[367660834,1750890644752,-965.0,0.00019414,2]
[367660836,1750890644765,-500.0,0.00019424,2]
[367660838,1750890644777,-561.55586604,0.00019424,2]
[367660840,1750890644789,-500.0,0.00019424,2]
[367660843,1750890644799,-500.0,0.00019424,2]
[367660845,1750890644813,-500.0,0.00019424,2]
[367660847,1750890644825,-500.0,0.00019424,2]
[367660850,1750890644837,-500.0,0.00019424,2]
[367660852,1750890644848,-500.0,0.00019424,2]
[367660854,1750890644860,-151.0,0.00019424,2]
[367660856,1750890644872,-151.0,0.00019424,2]
[367660859,1750890644884,-500.0,0.00019424,2]
[367660861,1750890644895,-500.0,0.00019424,2]
[367660863,1750890644909,-249.41208528,0.00019424,2]
[367660865,1750890644921,-198.0,0.00019424,2]
[367660867,1750890644933,-500.0,0.00019424,2]
[367660870,1750890644946,-614.58157554,0.00019424,2]
[367660872,1750890644957,-376.49677417,0.00019424,2]
[367660873,1750890644968,-500.0,0.00019424,2]
[367660874,1750890644979,-151.0,0.00019424,2]
[367660875,1750890644991,-198.0,0.00019424,2]
[367660876,1750890645002,-246.01127713,0.00019424,2]
[367660877,1750890645014,-248.78848359,0.00019424,2]
[367660879,1750890645025,-329.16333721,0.00019424,2]
[367660881,1750890645038,-500.0,0.00019424,2]
[367660883,1750890645050,-198.76709495,0.00019424,2]
[367660886,1750890645061,-151.0,0.00019424,2]
[367660888,1750890645074,-151.0,0.00019424,2]
[367660890,1750890645084,-500.0,0.00019451,2]
[367660892,1750890645095,-500.0,0.00019451,2]
[367660894,1750890645106,-500.0,0.00019451,2]
[367660897,1750890645120,-500.0,0.00019451,2]
[367660899,1750890645130,-500.0,0.00019451,2]
[367660901,1750890645143,-500.0,0.00019451,2]
[367660903,1750890645154,-192.4422019,0.00019451,2]
[367660905,1750890645165,-151.0,0.00019451,2]
[367660908,1750890645177,-500.0,0.00019451,2]
[367660910,1750890645189,-500.0,0.00019451,2]
[367660912,1750890645201,-500.0,0.00019451,2]
[367660915,1750890645213,-500.0,0.00019451,2]
[367660917,1750890645224,-201.0856224,0.00019451,2]
[367660919,1750890645236,-164.70744157,0.00019451,2]
[367660921,1750890645249,-460.0,0.00019452,2]
[367660924,1750890645261,-478.62,0.00019452,2]
[367660927,1750890645271,-544.65,0.00019452,2]
[367660929,1750890645281,-591.8,0.00019452,2]
[367660931,1750890645291,-1386.63,0.00019452,2]
[367660933,1750890645301,-897.71,0.00019452,2]
[367660935,1750890645312,-686.18,0.00019452,2]
[367660937,1750890645324,-952.47,0.00019452,2]
[367660941,1750890645337,-460.0,0.00019452,2]
[367660943,1750890645350,-460.0,0.00019452,2]
[367660945,1750890645361,-460.0,0.00019452,2]
[367660947,1750890645372,-695.34,0.00019452,2]
[367660949,1750890645381,-677.71,0.00019452,2]
[367660952,1750890645392,-460.0,0.00019452,2]
[367660955,1750890645403,-666.71,0.00019452,2]
[367660957,1750890645415,-460.0,0.00019452,2]
[367660959,1750890645428,-497.59,0.00019452,2]
[367660962,1750890645439,-500.0,0.00019479,2]
[367660964,1750890645449,-151.0,0.00019479,2]
[367660966,1750890645459,-500.0,0.00019479,2]
[367660968,1750890645469,-500.0,0.00019479,2]
[367660970,1750890645479,-397.5341841,0.00019479,2]
[367660972,1750890645491,-151.00261681,0.00019479,2]
[367660974,1750890645501,-500.0,0.00019479,2]
[367660976,1750890645512,-207.11734642,0.00019479,2]
[367660978,1750890645522,-196.91395842,0.00019479,2]
[367660980,1750890645532,-500.0,0.00019479,2]
[367660983,1750890645543,-500.0,0.00019506,2]
[367660985,1750890645553,-526.97,0.00019506,2]
[367660987,1750890645563,-500.0,0.00019506,2]
[367660989,1750890645574,-500.0,0.00019506,2]
[367660991,1750890645584,-500.0,0.00019506,2]
[367660993,1750890645595,-587.0,0.00019627,2]
[367660995,1750890645606,-520.66461532,0.00019649,2]
[367660998,1750890645617,-1008.41610922,0.00019659,2]
[367661000,1750890645627,-371.99250631,0.00019726,2]
[367661002,1750890645638,-478.62,0.00019726,2]
[367661004,1750890645649,-544.65,0.00019726,2]
[367661006,1750890645660,-591.8,0.00019726,2]
[367661008,1750890645671,-751.77208922,0.00019726,2]
[367661027,1750890645826,-317.0,0.00017314,2]
[367661029,1750890645837,-634.85791078,0.00019726,2]
[367661031,1750890645848,-897.71,0.00019726,2]
[367661033,1750890645859,-686.18,0.00019726,2]
[367661035,1750890645870,-952.47,0.00019726,2]
[367661037,1750890645881,-460.0,0.00019726,2]
[367661040,1750890645892,-460.0,0.00019726,2]
[367661042,1750890645903,-460.0,0.00019726,2]
[367661044,1750890645916,-695.34,0.00019726,2]
[367661046,1750890645926,-677.71,0.00019726,2]
[367661048,1750890645937,-460.0,0.00019726,2]
[367661050,1750890645948,-666.71,0.00019726,2]
[367661052,1750890645959,-460.0,0.00019726,2]
[367661055,1750890645971,-497.59,0.00019726,2]
[367661057,1750890645984,-2200.0,0.0001974,2]
[367661059,1750890645995,-1008.41610922,0.00019934,2]
[367661061,1750890646005,-181.556,0.00019973,2]
[367661063,1750890646016,-175.5396991,0.0002,2]
[367661089,1750890646173,-460.0,0.0001726,2]
[367661091,1750890646184,-317.0,0.00017314,2]
[367661093,1750890646195,-473.09622049,0.00017534,2]
[367661095,1750890646205,-460.0,0.0001863,2]
[367661097,1750890646216,-460.0,0.00018904,2]
[367661100,1750890646226,-460.0,0.00019178,2]
[367661102,1750890646236,-460.0,0.00019452,2]
[367661104,1750890646246,-460.0,0.00019726,2]
[367661106,1750890646257,-303.0803009,0.0002,2]
[367661108,1750890646268,-544.65,0.0002,2]
[367661110,1750890646278,-591.8,0.0002,2]
[367661112,1750890646289,-1386.63,0.0002,2]
[367661114,1750890646300,-897.71,0.0002,2]
[367661117,1750890646310,-686.18,0.0002,2]
[367661119,1750890646320,-952.47,0.0002,2]
[367661121,1750890646331,-460.0,0.0002,2]
[367661123,1750890646341,-460.0,0.0002,2]
[367661125,1750890646351,-695.34,0.0002,2]
[367661127,1750890646362,-460.0,0.0002,2]
[367661130,1750890646374,-677.71,0.0002,2]
[367661132,1750890646384,-460.0,0.0002,2]
[367661134,1750890646393,-666.71,0.0002,2]
[367661136,1750890646403,-460.0,0.0002,2]
[367661158,1750890646597,-497.59,0.0002,2]
[367661162,1750890646622,-481.96869021,0.0002,2]
[367661164,1750890646634,-626.38024141,0.00020034,2]
[367661166,1750890646644,-3224.68,0.000202,2]
[367661168,1750890646653,-1008.41610922,0.0002021,2]
[367661170,1750890646662,-478.62,0.00020273,2]
[367661172,1750890646672,-544.65,0.00020273,2]
[367661174,1750890646681,-591.8,0.00020273,2]
[367661176,1750890646690,-1386.63,0.00020273,2]
[367661178,1750890646700,-897.71,0.00020273,2]
[367661180,1750890646709,-686.18,0.00020273,2]
[367661182,1750890646718,-952.47,0.00020273,2]
[367661184,1750890646727,-460.0,0.00020273,2]
[367661186,1750890646737,-460.0,0.00020273,2]
[367661188,1750890646746,-695.34,0.00020273,2]
[367661190,1750890646755,-460.0,0.00020273,2]
[367661192,1750890646765,-677.71,0.00020273,2]
[367661195,1750890646775,-460.0,0.00020273,2]
[367661197,1750890646785,-666.71,0.00020273,2]
[367661198,1750890646794,-460.0,0.00020273,2]
[367661200,1750890646803,-497.59,0.00020273,2]
[367661203,1750890646812,-200.0,0.0002035,2]
[367661204,1750890646821,-215.0738,0.00020434,2]
[367661206,1750890646830,-1008.41610922,0.00020486,3]
[367661208,1750890646840,-500.0,0.00020547,14]
[367661210,1750890646849,-478.62,0.00020547,2]
[367661212,1750890646858,-544.65,0.00020547,2]
[367661214,1750890646867,-591.8,0.00020547,2]
[367661216,1750890646877,-1386.63,0.00020547,2]
[367661218,1750890646886,-897.71,0.00020547,2]
[367661220,1750890646896,-686.18,0.00020547,2]
[367661223,1750890646906,-952.47,0.00020547,2]
[367661225,1750890646915,-460.0,0.00020547,2]
[367661226,1750890646924,-234.90492473,0.00020547,2]
[367661229,1750890646934,-695.34,0.00020547,2]
[367661231,1750890646943,-460.0,0.00020547,2]
[367661233,1750890646952,-677.71,0.00020547,2]
[367661235,1750890646962,-460.0,0.00020547,2]
[367661237,1750890646971,-666.71,0.00020547,2]
[367661239,1750890646980,-460.0,0.00020547,2]
[367661241,1750890646989,-497.59,0.00020547,2]
[367661243,1750890646999,-1037.245681,0.0002058,4]
[367661244,1750890647008,-5661.52,0.000206,2]
[367661246,1750890647018,-2000.0,0.000207,2]
[367661248,1750890647027,-317.0,0.00020728,2]
[367661251,1750890647036,-500.0,0.00020738,2]
[367661253,1750890647046,-500.0,0.00020738,2]
[367661254,1750890647055,-520.66461532,0.00020753,2]
[367661257,1750890647064,-1008.41610922,0.00020762,3]
[367661258,1750890647073,-41231.49754981,0.0002077,5]
[367661261,1750890647085,-651.75405043,0.0002077,5]
[367661271,1750890647165,-1628.05803423,0.000189,2]
[367661273,1750890647174,-9769.72566866,0.0002077,5]
[367661275,1750890647183,-151.0,0.00020821,2]
[367661277,1750890647193,-151.0,0.00020821,2]
[367661279,1750890647203,-206.109236,0.00020821,2]
[367661281,1750890647212,-172.767702,0.00020821,2]
[367661283,1750890647221,-172.767702,0.00020821,2]
[367661285,1750890647230,-151.0,0.00020821,2]
[367661287,1750890647239,-478.62,0.00020821,2]
[367661289,1750890647248,-544.65,0.00020821,2]
[367661291,1750890647257,-591.8,0.00020821,2]
[367661293,1750890647267,-1386.63,0.00020821,2]
[367661295,1750890647275,-897.71,0.00020821,2]
[367661297,1750890647284,-686.18,0.00020821,2]
[367661299,1750890647293,-952.47,0.00020821,2]
[367661300,1750890647302,-203.14791286,0.00020821,2]
[367661302,1750890647311,-695.34,0.00020821,2]
[367661305,1750890647321,-460.0,0.00020821,2]
[367661307,1750890647331,-677.71,0.00020821,2]
[367661309,1750890647340,-460.0,0.00020821,2]
[367661311,1750890647349,-666.71,0.00020821,2]
[367661313,1750890647357,-460.0,0.00020821,2]
[367661315,1750890647366,-497.59,0.00020821,2]
[367661317,1750890647375,-626.38024141,0.000209,2]
[367661319,1750890647384,-500.0,0.00020958,15]
[367661321,1750890647393,-500.0,0.00020973,2]
[367661322,1750890647403,-500.0,0.00020973,2]
[367661324,1750890647412,-561.57653482,0.00020973,2]
[367661326,1750890647421,-500.0,0.00020973,2]
[367661328,1750890647431,-3615.06118778,0.00021,2]
[367661330,1750890647442,-16906.484,0.00021,2]
[367661348,1750890647599,-818.40808693,0.00021,2]
[367661350,1750890647609,-414048.43069631,0.00021,2]
[367661352,1750890647618,-4427.0,0.00021,2]
[367661354,1750890647627,-10000.0,0.00021,5]
[367661356,1750890647636,-269.05191457,0.00021,2]
[367661358,1750890647645,-666.71619695,0.00021,10]
[367661360,1750890647655,-7178.99141081,0.00021,10]
[367661362,1750890647664,-5166.3028275,0.00021,2]
[367661364,1750890647673,-201.25410736,0.00021,2]
[367661366,1750890647682,-4799.63525077,0.00021,7]
[367661368,1750890647691,-2000.0,0.00021,2]
[367661370,1750890647700,-151.0,0.00021,2]
[367661372,1750890647709,-151.0,0.00021,2]
[367661374,1750890647718,-151.0,0.00021,2]
[367661376,1750890647727,-151.0,0.00021,2]
[367661378,1750890647738,-151.0,0.00021,2]
[367661380,1750890647747,-3000.0,0.00021,2]
[367661382,1750890647757,-3595.0,0.00021,7]
[367661384,1750890647766,-231.426111,0.00021,2]
[367661386,1750890647775,-231.426111,0.00021,2]
[367661387,1750890647784,-151.0,0.00021,2]
[367661390,1750890647794,-151.0,0.00021,2]
[367661391,1750890647804,-151.0,0.00021,2]
[367661393,1750890647813,-151.0,0.00021,2]
[367661396,1750890647823,-250.804454,0.00021,2]
[367661397,1750890647831,-250.804454,0.00021,2]
[367661400,1750890647841,-151.0,0.00021,2]
[367661402,1750890647850,-3406.81518668,0.00021,2]
[367661404,1750890647859,-151.0,0.00021,2]
[367661406,1750890647869,-151.0,0.00021,2]
[367661408,1750890647878,-413.99219268,0.00021,2]
[367661410,1750890647887,-172.767702,0.00021,2]
[367661411,1750890647896,-172.767702,0.00021,2]
[367661414,1750890647909,-151.0,0.00021,2]
[367661416,1750890647918,-160.0,0.00021,2]
[367661418,1750890647927,-3000.0,0.0002101,2]
[367661419,1750890647936,-1749.0,0.00021017,2]
[367661422,1750890647947,-1749.0,0.00021017,2]
[367661424,1750890647956,-3000.0,0.0002102,2]
[367661425,1750890647965,-3000.0,0.0002103,2]
[367661427,1750890647975,-1008.41610922,0.00021038,4]
[367661429,1750890647985,-3000.0,0.0002104,2]
[367661431,1750890647994,-3000.0,0.0002105,2]
[367661433,1750890648003,-500.0,0.00021057,2]
[367661436,1750890648012,-3000.0,0.0002106,2]
[367661438,1750890648021,-3000.0,0.0002107,2]
[367661440,1750890648030,-324.94385036,0.0002108,2]
[367661462,1750890648240,-2586.92706743,0.0002108,2]
[367661474,1750890648345,618.891036,0.00013699,2]
[367668647,1750891731085,310.51461753,0.00013699,2]
[367668648,1750891731108,277.43186647,0.00013699,2]
[367668689,1750891832207,-300.0,0.00016205,2]
[367668690,1750891832217,-7355.83795226,0.00016206,2]
[367668700,1750891838112,-17544.16204774,0.00016206,2]
[367668701,1750891838122,-212.61296188,0.00016437,2]
[367668702,1750891838131,-594.97195592,0.00016437,2]
[367668703,1750891838140,-594.97195592,0.00016437,2]
[367668704,1750891838150,-594.97195592,0.00016437,2]
[367668705,1750891838159,-594.97195592,0.00016437,2]
[367668706,1750891838169,-594.97195592,0.00016437,2]
[367668707,1750891838178,-594.97195592,0.00016437,2]
[367668708,1750891838188,-594.97195592,0.00016437,2]
[367668709,1750891838198,-594.97195592,0.00016437,2]
[367668710,1750891838208,-594.97195592,0.00016437,2]